[Event "*** Qualifier 3: Titled Tuesday 3|2 Blitz"]
[Site "Chess.com"]
[Date "2017.04.18"]
[Round "2"]
[White "Kacparov"]
[Black "Iball95"]
[Result "0-1"]
[WhiteElo "2600"]
[BlackElo "2541"]
[TimeControl "180+2"]
[EndTime "13:24:17 PDT"]
[Termination "Iball95 won by resignation"]

1. e4 {[%clk 0:03:01.9]} 1... c6 {[%clk 0:03:01.3]} 2. d4 {[%clk 0:03:02.6]}
2... d5 {[%clk 0:03:02.9]} 3. Nc3 {[%clk 0:03:04.1]} 3... dxe4 {[%clk 0:03:04]}
4. Nxe4 {[%clk 0:03:06]} 4... Bf5 {[%clk 0:03:05.5]} 5. Ng3 {[%clk 0:03:07.1]}
5... Bg6 {[%clk 0:03:06.8]} 6. Nh3 {[%clk 0:03:08.4]} 6... Nd7 {[%clk
0:03:04.3]} 7. Nf4 {[%clk 0:03:08.4]} 7... Ngf6 {[%clk 0:03:04.8]} 8. h4 {[%clk
0:03:06.7]} 8... e5 {[%clk 0:02:47.5]} 9. dxe5 {[%clk 0:03:05.9]} 9... Nxe5
{[%clk 0:02:39.5]} 10. Qe2 {[%clk 0:02:48.3]} 10... Qe7 {[%clk 0:02:37.3]} 11.
Nxg6 {[%clk 0:02:30.2]} 11... hxg6 {[%clk 0:02:26.3]} 12. Bf4 {[%clk 0:02:30.4]}
12... Qb4+ {[%clk 0:02:11.9]} 13. Bd2 {[%clk 0:01:34]} 13... Qxb2 {[%clk
0:02:12.3]} 14. Rd1 {[%clk 0:01:34.6]} 14... O-O-O {[%clk 0:02:08.3]} 15. f3
{[%clk 0:00:58.1]} 15... Rxd2 {[%clk 0:01:20.8]} 16. Rxd2 {[%clk 0:00:56.8]}
16... Bb4 {[%clk 0:01:20.2]} 17. Kf2 {[%clk 0:00:52.4]} 17... Bc5+ {[%clk
0:01:16.7]} 18. Ke1 {[%clk 0:00:53.4]} 18... Re8 {[%clk 0:00:52.9]} 19. Ne4
{[%clk 0:00:53.9]} 19... Nxe4 {[%clk 0:00:50.8]} 20. fxe4 {[%clk 0:00:55.8]}
20... Bb4 {[%clk 0:00:49.5]} 21. Kf2 {[%clk 0:00:55.7]} 21... Bxd2 {[%clk
0:00:47.1]} 22. Qxd2 {[%clk 0:00:56.6]} 22... Ng4+ {[%clk 0:00:42.5]} 23. Kg3
{[%clk 0:00:56.4]} 23... Rxe4 {[%clk 0:00:38.1]} 24. Qd6 {[%clk 0:00:42.3]}
24... Qe5+ {[%clk 0:00:21.3]} 25. Qxe5 {[%clk 0:00:43]} 25... Nxe5 {[%clk
0:00:23.2]} 26. h5 {[%clk 0:00:43.1]} 26... Rg4+ {[%clk 0:00:23.2]} 27. Kf2
{[%clk 0:00:43.9]} 27... gxh5 {[%clk 0:00:23.6]} 28. Rxh5 {[%clk 0:00:43.8]}
28... f6 {[%clk 0:00:25.2]} 29. Be2 {[%clk 0:00:42]} 29... Ra4 {[%clk
0:00:25.5]} 30. Rh8+ {[%clk 0:00:41.1]} 30... Kc7 {[%clk 0:00:26.4]} 31. Rh7
{[%clk 0:00:42]} 31... Rxa2 {[%clk 0:00:27.7]} 32. Rxg7+ {[%clk 0:00:43.1]}
32... Kb6 {[%clk 0:00:29.3]} 33. c3 {[%clk 0:00:43.8]} 33... a5 {[%clk
0:00:29.5]} 34. Ke3 {[%clk 0:00:42]} 34... a4 {[%clk 0:00:30]} 35. Rg8 {[%clk
0:00:42.7]} 35... Rc2 {[%clk 0:00:29.9]} 36. Ra8 {[%clk 0:00:42]} 36... Rxc3+
{[%clk 0:00:31.1]} 37. Kd4 {[%clk 0:00:42.4]} 37... Rg3 {[%clk 0:00:30.3]} 38.
Rxa4 {[%clk 0:00:42.1]} 38... Rxg2 {[%clk 0:00:31.8]} 39. Ke3 {[%clk 0:00:41]}
39... Rg3+ {[%clk 0:00:32.1]} 40. Kf2 {[%clk 0:00:42.2]} 40... Rc3 {[%clk
0:00:32.6]} 41. Rf4 {[%clk 0:00:43.3]} 41... Nd7 {[%clk 0:00:33.1]} 42. Bg4
{[%clk 0:00:43.8]} 42... Ne5 {[%clk 0:00:32.7]} 43. Be2 {[%clk 0:00:44.6]} 43...
Nd3+ {[%clk 0:00:33.2]} 44. Bxd3 {[%clk 0:00:44.2]} 44... Rxd3 {[%clk
0:00:35.1]} 45. Rxf6 {[%clk 0:00:44.8]} 45... Kc5 {[%clk 0:00:35.1]} 46. Ke2
{[%clk 0:00:46.5]} 46... Rd5 {[%clk 0:00:35.4]} 47. Rf3 {[%clk 0:00:46.7]} 47...
b5 {[%clk 0:00:36.5]} 48. Rc3+ {[%clk 0:00:48]} 48... Kb6 {[%clk 0:00:37.9]} 49.
Rb3 {[%clk 0:00:43.4]} 49... c5 {[%clk 0:00:38.7]} 50. Rb1 {[%clk 0:00:44.3]}
50... b4 {[%clk 0:00:40]} 0-1

[Event "*** Qualifier 3: Titled Tuesday 3|2 Blitz"]
[Site "Chess.com"]
[Date "2017.04.18"]
[Round "2"]
[White "penguingm1"]
[Black "alekroth64"]
[Result "1-0"]
[WhiteElo "2557"]
[BlackElo "2261"]
[TimeControl "180+2"]
[EndTime "13:24:38 PDT"]
[Termination "penguingm1 won by resignation"]

1. d4 {[%clk 0:03:02]} 1... Nf6 {[%clk 0:02:59]} 2. c4 {[%clk 0:03:02.5]} 2...
e6 {[%clk 0:03:00.4]} 3. Nc3 {[%clk 0:03:03.3]} 3... Bb4 {[%clk 0:03:00.9]} 4.
Qc2 {[%clk 0:03:04.1]} 4... d5 {[%clk 0:03:00]} 5. cxd5 {[%clk 0:03:04.2]} 5...
Qxd5 {[%clk 0:02:59.7]} 6. Nf3 {[%clk 0:03:05.1]} 6... c5 {[%clk 0:02:49.6]} 7.
Bd2 {[%clk 0:02:26.2]} 7... Bxc3 {[%clk 0:02:48.6]} 8. bxc3 {[%clk 0:02:07.7]}
8... cxd4 {[%clk 0:02:49.5]} 9. cxd4 {[%clk 0:02:08.4]} 9... Nc6 {[%clk
0:02:45.2]} 10. e3 {[%clk 0:02:08.8]} 10... O-O {[%clk 0:02:43.3]} 11. Bd3
{[%clk 0:02:07.7]} 11... e5 {[%clk 0:02:22.1]} 12. dxe5 {[%clk 0:01:50]} 12...
Nxe5 {[%clk 0:02:20.9]} 13. Nxe5 {[%clk 0:01:51.9]} 13... Qxe5 {[%clk 0:02:20]}
14. Bc3 {[%clk 0:01:53.2]} 14... Qg5 {[%clk 0:01:56.7]} 15. O-O {[%clk
0:01:46.1]} 15... h6 {[%clk 0:01:50.8]} 16. Qb2 {[%clk 0:01:34.5]} 16... Nd5
{[%clk 0:01:40.3]} 17. Bd4 {[%clk 0:01:24.8]} 17... Be6 {[%clk 0:01:07]} 18. f4
{[%clk 0:01:14.6]} 18... Qg4 {[%clk 0:01:04.4]} 19. h3 {[%clk 0:01:14.9]} 19...
Qh4 {[%clk 0:00:47.2]} 20. Bxg7 {[%clk 0:01:02.4]} 20... Rfd8 {[%clk 0:00:38]}
21. Bd4 {[%clk 0:01:02.8]} 21... Nxe3 {[%clk 0:00:36.6]} 22. Rf3 {[%clk
0:01:01]} 22... Nf5 {[%clk 0:00:26.5]} 23. Bf6 {[%clk 0:01:00]} 23... Qh5 {[%clk
0:00:22.1]} 24. g4 {[%clk 0:00:38.1]} 24... Qg6 {[%clk 0:00:17.4]} 25. Bxd8
{[%clk 0:00:37.3]} 25... Rxd8 {[%clk 0:00:16.4]} 26. Kh2 {[%clk 0:00:36.5]}
26... Qg7 {[%clk 0:00:16.4]} 27. Qxg7+ {[%clk 0:00:33.7]} 27... Nxg7 {[%clk
0:00:18.3]} 28. f5 {[%clk 0:00:35.2]} 28... Bd5 {[%clk 0:00:19.2]} 29. Re3
{[%clk 0:00:36.5]} 29... Bc6 {[%clk 0:00:20.1]} 30. Bc4 {[%clk 0:00:37.3]} 30...
Ne8 {[%clk 0:00:20.2]} 31. Re7 {[%clk 0:00:34.8]} 31... Nd6 {[%clk 0:00:21.1]}
32. Rd1 {[%clk 0:00:29.1]} 32... Kf8 {[%clk 0:00:21.4]} 33. Ree1 {[%clk
0:00:29.3]} 33... Rd7 {[%clk 0:00:21.1]} 34. Bb3 {[%clk 0:00:30]} 34... a6
{[%clk 0:00:21.3]} 35. Kg3 {[%clk 0:00:30.8]} 35... Bb5 {[%clk 0:00:19.5]} 36.
h4 {[%clk 0:00:30.6]} 36... Bc6 {[%clk 0:00:19.2]} 37. Kf4 {[%clk 0:00:31.5]}
37... Rd8 {[%clk 0:00:18.6]} 38. g5 {[%clk 0:00:32.3]} 38... hxg5+ {[%clk
0:00:18.1]} 39. hxg5 {[%clk 0:00:34.2]} 39... Rd7 {[%clk 0:00:20]} 40. Rd2
{[%clk 0:00:32]} 40... Kg7 {[%clk 0:00:20.8]} 41. Rh2 {[%clk 0:00:28]} 41... Ne8
{[%clk 0:00:20.6]} 42. Rxe8 {[%clk 0:00:19.9]} 42... Rd4+ {[%clk 0:00:21.1]} 43.
Ke3 {[%clk 0:00:21]} 43... Re4+ {[%clk 0:00:22.1]} 44. Rxe4 {[%clk 0:00:21.5]}
1-0

[Event "*** Qualifier 3: Titled Tuesday 3|2 Blitz"]
[Site "Chess.com"]
[Date "2017.04.18"]
[Round "2"]
[White "Ilja_Semjonovs"]
[Black "Grootneus"]
[Result "0-1"]
[WhiteElo "2191"]
[BlackElo "2084"]
[TimeControl "180+2"]
[EndTime "13:24:50 PDT"]
[Termination "Grootneus won by resignation"]

1. d4 {[%clk 0:03:00.8]} 1... Nf6 {[%clk 0:02:59.1]} 2. Nf3 {[%clk 0:03:00.2]}
2... c5 {[%clk 0:02:57.4]} 3. c3 {[%clk 0:03:00.8]} 3... d5 {[%clk 0:02:57.5]}
4. Bg5 {[%clk 0:03:01.6]} 4... Ne4 {[%clk 0:02:57.4]} 5. Bc1 {[%clk 0:02:59.6]}
5... Nc6 {[%clk 0:02:56.9]} 6. e3 {[%clk 0:03:00]} 6... Bg4 {[%clk 0:02:51.2]}
7. Nbd2 {[%clk 0:02:59.1]} 7... e6 {[%clk 0:02:46.7]} 8. Bd3 {[%clk 0:02:58]}
8... Nf6 {[%clk 0:02:44.2]} 9. O-O {[%clk 0:02:57.6]} 9... Bd6 {[%clk
0:02:38.3]} 10. h3 {[%clk 0:02:58.6]} 10... Bh5 {[%clk 0:02:39]} 11. Be2 {[%clk
0:02:59.8]} 11... Bg6 {[%clk 0:02:37.6]} 12. dxc5 {[%clk 0:02:49.7]} 12... Bxc5
{[%clk 0:02:37.4]} 13. b4 {[%clk 0:02:50.8]} 13... Bd6 {[%clk 0:02:38.6]} 14.
Bb2 {[%clk 0:02:51.8]} 14... O-O {[%clk 0:02:38.7]} 15. a3 {[%clk 0:02:52.6]}
15... Rc8 {[%clk 0:02:36.2]} 16. c4 {[%clk 0:02:53.4]} 16... Bb8 {[%clk
0:02:14.7]} 17. Rc1 {[%clk 0:02:48.6]} 17... Qe7 {[%clk 0:01:55.5]} 18. Qb3
{[%clk 0:02:39]} 18... Rfd8 {[%clk 0:01:48.7]} 19. Rfd1 {[%clk 0:02:39.5]} 19...
e5 {[%clk 0:01:22.2]} 20. cxd5 {[%clk 0:02:26.4]} 20... Nxd5 {[%clk 0:01:18.7]}
21. Nc4 {[%clk 0:02:09.1]} 21... e4 {[%clk 0:01:05.7]} 22. Nd4 {[%clk
0:02:09.9]} 22... Nxd4 {[%clk 0:01:06.1]} 23. Bxd4 {[%clk 0:01:57.7]} 23... Qc7
{[%clk 0:00:56.2]} 24. Be5 {[%clk 0:01:50.7]} 24... Qe7 {[%clk 0:00:56.3]} 25.
Bxb8 {[%clk 0:01:51.3]} 25... Rxb8 {[%clk 0:00:58.2]} 26. Na5 {[%clk 0:01:27.1]}
26... Nb6 {[%clk 0:00:46.7]} 27. Rxd8+ {[%clk 0:01:18.7]} 27... Rxd8 {[%clk
0:00:48.6]} 28. Qc3 {[%clk 0:01:04.4]} 28... Nd5 {[%clk 0:00:44.2]} 29. Qc8
{[%clk 0:00:27.1]} 29... h6 {[%clk 0:00:40.2]} 30. Qxb7 {[%clk 0:00:27.4]} 30...
Qg5 {[%clk 0:00:28]} 31. Rd1 {[%clk 0:00:22.3]} 31... Kh7 {[%clk 0:00:11.1]} 32.
Nc6 {[%clk 0:00:19.2]} 32... Nxe3 {[%clk 0:00:08.8]} 33. fxe3 {[%clk 0:00:19.5]}
33... Qxe3+ {[%clk 0:00:09.2]} 34. Kh1 {[%clk 0:00:18.6]} 34... Rxd1+ {[%clk
0:00:10]} 35. Bxd1 {[%clk 0:00:19.8]} 35... Qe1+ {[%clk 0:00:11.5]} 36. Kh2
{[%clk 0:00:21.1]} 36... Qxd1 {[%clk 0:00:12.2]} 37. Qxa7 {[%clk 0:00:19.3]}
37... Qd6+ {[%clk 0:00:11.7]} 38. Kg1 {[%clk 0:00:20.5]} 38... Qxc6 {[%clk
0:00:12.6]} 39. a4 {[%clk 0:00:21.3]} 39... Qc1+ {[%clk 0:00:13.3]} 40. Kh2
{[%clk 0:00:20.9]} 40... Qf4+ {[%clk 0:00:15]} 41. Kg1 {[%clk 0:00:21.4]} 41...
e3 {[%clk 0:00:16.8]} 42. b5 {[%clk 0:00:22.4]} 42... Qf2+ {[%clk 0:00:17.8]}
43. Kh2 {[%clk 0:00:22.5]} 43... Qf4+ {[%clk 0:00:19.4]} 44. Kg1 {[%clk
0:00:23.2]} 44... e2 {[%clk 0:00:20.9]} 45. Qe7 {[%clk 0:00:23.2]} 45... Qf1+
{[%clk 0:00:21.8]} 46. Kh2 {[%clk 0:00:24.5]} 0-1

[Event "*** Qualifier 3: Titled Tuesday 3|2 Blitz"]
[Site "Chess.com"]
[Date "2017.04.18"]
[Round "2"]
[White "Fandorine"]
[Black "GianmarcoVaR"]
[Result "1-0"]
[WhiteElo "2686"]
[BlackElo "2471"]
[TimeControl "180+2"]
[EndTime "13:25:26 PDT"]
[Termination "Fandorine won by checkmate"]

1. e4 {[%clk 0:03:02]} 1... c6 {[%clk 0:03:00.8]} 2. d4 {[%clk 0:03:01.7]} 2...
d5 {[%clk 0:03:02.4]} 3. e5 {[%clk 0:03:03.4]} 3... Bf5 {[%clk 0:03:03.2]} 4. h4
{[%clk 0:03:04.4]} 4... h5 {[%clk 0:03:03.8]} 5. Bd3 {[%clk 0:03:05.9]} 5...
Bxd3 {[%clk 0:03:04.6]} 6. Qxd3 {[%clk 0:03:07.8]} 6... Qa5+ {[%clk 0:03:03.8]}
7. Bd2 {[%clk 0:03:01.4]} 7... Qb6 {[%clk 0:03:04]} 8. Ne2 {[%clk 0:02:53.7]}
8... e6 {[%clk 0:03:02.1]} 9. b3 {[%clk 0:02:42.6]} 9... Ne7 {[%clk 0:02:52.5]}
10. c4 {[%clk 0:02:42.8]} 10... Nf5 {[%clk 0:02:52.3]} 11. Nbc3 {[%clk
0:02:32.6]} 11... Nd7 {[%clk 0:02:39.4]} 12. cxd5 {[%clk 0:02:30.6]} 12... cxd5
{[%clk 0:02:39.9]} 13. Nxd5 {[%clk 0:02:29.7]} 13... Qc6 {[%clk 0:02:28.3]} 14.
Ndf4 {[%clk 0:02:30.9]} 14... Nb6 {[%clk 0:02:25.6]} 15. Rc1 {[%clk 0:02:24.9]}
15... Qd7 {[%clk 0:02:26.3]} 16. Qe4 {[%clk 0:02:22.5]} 16... Rd8 {[%clk
0:02:25.3]} 17. Bc3 {[%clk 0:02:07.9]} 17... Ba3 {[%clk 0:02:23]} 18. Rd1 {[%clk
0:02:08.6]} 18... Ne7 {[%clk 0:02:19.5]} 19. O-O {[%clk 0:02:07.6]} 19... Rc8
{[%clk 0:02:07.5]} 20. Qd3 {[%clk 0:01:51.8]} 20... Ned5 {[%clk 0:01:54.4]} 21.
Bd2 {[%clk 0:01:50.9]} 21... g6 {[%clk 0:01:52.4]} 22. Ng3 {[%clk 0:01:46]}
22... Be7 {[%clk 0:01:51.8]} 23. Ne4 {[%clk 0:01:44.4]} 23... O-O {[%clk
0:01:48.4]} 24. g3 {[%clk 0:01:04.4]} 24... Rc6 {[%clk 0:01:38.6]} 25. Nh3
{[%clk 0:00:51.1]} 25... Kg7 {[%clk 0:01:19.4]} 26. a4 {[%clk 0:00:44.1]} 26...
Rfc8 {[%clk 0:01:13.9]} 27. a5 {[%clk 0:00:43.9]} 27... Na8 {[%clk 0:01:15.1]}
28. Nhg5 {[%clk 0:00:38]} 28... Nac7 {[%clk 0:01:10]} 29. Qf3 {[%clk 0:00:39.1]}
29... Bd8 {[%clk 0:00:52.1]} 30. Nd6 {[%clk 0:00:29.1]} 30... Bxg5 {[%clk
0:00:30.1]} 31. Bxg5 {[%clk 0:00:31]} 31... Ne8 {[%clk 0:00:31.1]} 32. Nxc8
{[%clk 0:00:30.9]} 32... Qxc8 {[%clk 0:00:31.4]} 33. Rc1 {[%clk 0:00:32]} 33...
Nec7 {[%clk 0:00:12.2]} 34. Rxc6 {[%clk 0:00:27.4]} 34... bxc6 {[%clk
0:00:13.6]} 35. Rc1 {[%clk 0:00:28.1]} 35... Nb5 {[%clk 0:00:15.5]} 36. Qd3
{[%clk 0:00:28.5]} 36... Qf8 {[%clk 0:00:10.1]} 37. Rxc6 {[%clk 0:00:23.7]}
37... Qb4 {[%clk 0:00:11.2]} 38. Rc4 {[%clk 0:00:12.3]} 38... Qe1+ {[%clk
0:00:11.6]} 39. Qf1 {[%clk 0:00:13.7]} 39... Qe4 {[%clk 0:00:11.3]} 40. Qg2
{[%clk 0:00:09.4]} 40... Qb1+ {[%clk 0:00:11.1]} 41. Rc1 {[%clk 0:00:06.9]}
41... Qxb3 {[%clk 0:00:10.9]} 42. Qe4 {[%clk 0:00:07.5]} 42... Nbc3 {[%clk
0:00:10]} 43. Qf3 {[%clk 0:00:07]} 43... Qb2 {[%clk 0:00:07.9]} 44. Re1 {[%clk
0:00:07.5]} 44... Nb5 {[%clk 0:00:07.6]} 45. Bf6+ {[%clk 0:00:07.3]} 45... Kg8
{[%clk 0:00:08.8]} 46. Qd3 {[%clk 0:00:07.7]} 46... Nxd4 {[%clk 0:00:09.1]} 47.
Rb1 {[%clk 0:00:09.3]} 47... Qa2 {[%clk 0:00:03.2]} 48. Rb8+ {[%clk 0:00:09.9]}
48... Kh7 {[%clk 0:00:03.9]} 49. Rh8# {[%clk 0:00:10.9]} 1-0

[Event "*** Qualifier 3: Titled Tuesday 3|2 Blitz"]
[Site "Chess.com"]
[Date "2017.04.18"]
[Round "2"]
[White "MyleneFarmer"]
[Black "ka1ser64"]
[Result "1-0"]
[WhiteElo "2333"]
[BlackElo "2324"]
[TimeControl "180+2"]
[EndTime "13:25:26 PDT"]
[Termination "MyleneFarmer won by resignation"]

1. e4 {[%clk 0:03:02]} 1... e6 {[%clk 0:02:59.7]} 2. d4 {[%clk 0:03:02.6]} 2...
d5 {[%clk 0:03:01.3]} 3. Nc3 {[%clk 0:03:04.2]} 3... Nc6 {[%clk 0:03:02.6]} 4.
Nf3 {[%clk 0:03:03.4]} 4... Nf6 {[%clk 0:03:03.4]} 5. Bd3 {[%clk 0:02:59.3]}
5... Bb4 {[%clk 0:03:04.5]} 6. exd5 {[%clk 0:02:57.6]} 6... exd5 {[%clk
0:02:47.8]} 7. O-O {[%clk 0:02:57.6]} 7... O-O {[%clk 0:02:48.5]} 8. Bg5 {[%clk
0:02:45.6]} 8... Be7 {[%clk 0:02:47.5]} 9. h3 {[%clk 0:02:45.3]} 9... Re8 {[%clk
0:02:45.1]} 10. Re1 {[%clk 0:02:43.7]} 10... Nb4 {[%clk 0:02:43.1]} 11. Ne5
{[%clk 0:02:39.7]} 11... Be6 {[%clk 0:02:38.9]} 12. Bb5 {[%clk 0:02:24.7]} 12...
c6 {[%clk 0:02:37.9]} 13. Bf1 {[%clk 0:02:22.5]} 13... Bf5 {[%clk 0:02:38.4]}
14. Rc1 {[%clk 0:02:20.7]} 14... a5 {[%clk 0:02:37.9]} 15. a3 {[%clk 0:02:21.1]}
15... Na6 {[%clk 0:02:39.1]} 16. Qf3 {[%clk 0:02:17.6]} 16... Be4 {[%clk
0:02:38.3]} 17. Qe3 {[%clk 0:02:03]} 17... Bf5 {[%clk 0:02:32.1]} 18. Qf4 {[%clk
0:01:51.5]} 18... Be6 {[%clk 0:01:57]} 19. Bd3 {[%clk 0:01:47.9]} 19... Nh5
{[%clk 0:01:52.5]} 20. Bxe7 {[%clk 0:01:48.8]} 20... Nxf4 {[%clk 0:01:53.5]} 21.
Bxd8 {[%clk 0:01:49.9]} 21... Nxd3 {[%clk 0:01:54.3]} 22. Nxd3 {[%clk
0:01:43.4]} 22... Raxd8 {[%clk 0:01:54.9]} 23. Na4 {[%clk 0:01:41.4]} 23... Bf5
{[%clk 0:01:53.5]} 24. Ndc5 {[%clk 0:01:40.5]} 24... Nxc5 {[%clk 0:01:52.7]} 25.
Nxc5 {[%clk 0:01:42.4]} 25... Bc8 {[%clk 0:01:50.1]} 26. Kf1 {[%clk 0:01:28.8]}
26... Kf8 {[%clk 0:01:48.9]} 27. f3 {[%clk 0:01:23]} 27... h5 {[%clk 0:01:41.9]}
28. g4 {[%clk 0:01:14.3]} 28... h4 {[%clk 0:01:36.2]} 29. Kf2 {[%clk 0:01:11.1]}
29... Rxe1 {[%clk 0:01:33.9]} 30. Rxe1 {[%clk 0:01:11.5]} 30... Re8 {[%clk
0:01:33.3]} 31. Re5 {[%clk 0:01:02.6]} 31... Rxe5 {[%clk 0:01:30.6]} 32. dxe5
{[%clk 0:01:04.5]} 32... Ke7 {[%clk 0:01:29.8]} 33. f4 {[%clk 0:01:02.8]} 33...
f6 {[%clk 0:01:19.9]} 34. exf6+ {[%clk 0:00:47.5]} 34... Kxf6 {[%clk 0:01:21]}
35. Kf3 {[%clk 0:00:45.3]} 35... Ke7 {[%clk 0:01:21.5]} 36. Nd3 {[%clk 0:00:43]}
36... b6 {[%clk 0:01:18.3]} 37. Ne5 {[%clk 0:00:43.9]} 37... Kd6 {[%clk
0:01:08.9]} 38. Ng6 {[%clk 0:00:42.6]} 38... c5 {[%clk 0:01:08.4]} 39. Nxh4
{[%clk 0:00:43.4]} 39... d4 {[%clk 0:01:00.8]} 40. Ng2 {[%clk 0:00:44.1]} 40...
Bb7+ {[%clk 0:01:00.1]} 41. Kf2 {[%clk 0:00:45]} 41... Be4 {[%clk 0:01:01.7]}
42. Ne1 {[%clk 0:00:45.3]} 42... c4 {[%clk 0:01:02.5]} 43. h4 {[%clk 0:00:40.7]}
43... b5 {[%clk 0:01:03.1]} 44. Nf3 {[%clk 0:00:30.8]} 44... Kd5 {[%clk
0:00:50.8]} 45. Ne1 {[%clk 0:00:24.6]} 45... a4 {[%clk 0:00:49.6]} 46. c3 {[%clk
0:00:21.5]} 46... Kc5 {[%clk 0:00:38]} 47. h5 {[%clk 0:00:18.6]} 47... Kd5
{[%clk 0:00:38.7]} 48. Ng2 {[%clk 0:00:14]} 48... dxc3 {[%clk 0:00:34.5]} 49.
bxc3 {[%clk 0:00:14.8]} 49... b4 {[%clk 0:00:35.9]} 50. cxb4 {[%clk 0:00:16.2]}
50... c3 {[%clk 0:00:37]} 51. Ne3+ {[%clk 0:00:17.1]} 51... Kd4 {[%clk
0:00:37.3]} 52. g5 {[%clk 0:00:18.3]} 52... c2 {[%clk 0:00:34.1]} 53. Nxc2+
{[%clk 0:00:18.7]} 53... Bxc2 {[%clk 0:00:36]} 54. g6 {[%clk 0:00:18.8]} 54...
Kc4 {[%clk 0:00:31]} 55. Ke3 {[%clk 0:00:15.7]} 55... Kb3 {[%clk 0:00:31.8]} 56.
b5 {[%clk 0:00:16.6]} 56... Kxa3 {[%clk 0:00:31.4]} 57. b6 {[%clk 0:00:18.2]}
57... Bxg6 {[%clk 0:00:25.7]} 58. hxg6 {[%clk 0:00:18.1]} 1-0

[Event "*** Qualifier 3: Titled Tuesday 3|2 Blitz"]
[Site "Chess.com"]
[Date "2017.04.18"]
[Round "2"]
[White "MITerryble"]
[Black "Gabix_94"]
[Result "0-1"]
[WhiteElo "2644"]
[BlackElo "2515"]
[TimeControl "180+2"]
[EndTime "13:25:42 PDT"]
[Termination "Gabix_94 won by resignation"]

1. d4 {[%clk 0:03:02]} 1... Nf6 {[%clk 0:03:00.9]} 2. Nf3 {[%clk 0:03:03.5]}
2... e6 {[%clk 0:03:01.8]} 3. c4 {[%clk 0:03:04.1]} 3... c5 {[%clk 0:03:02.9]}
4. g3 {[%clk 0:03:04.9]} 4... cxd4 {[%clk 0:03:03.6]} 5. Nxd4 {[%clk 0:03:06.8]}
5... d5 {[%clk 0:03:05.2]} 6. Bg2 {[%clk 0:03:07.5]} 6... e5 {[%clk 0:03:06.5]}
7. Nf3 {[%clk 0:03:08.3]} 7... d4 {[%clk 0:03:07.4]} 8. O-O {[%clk 0:03:09.4]}
8... Nc6 {[%clk 0:03:09.1]} 9. e3 {[%clk 0:03:10.4]} 9... Bc5 {[%clk 0:03:10.7]}
10. exd4 {[%clk 0:03:00.8]} 10... exd4 {[%clk 0:03:12.6]} 11. Ne1 {[%clk
0:03:01.3]} 11... O-O {[%clk 0:03:11.1]} 12. Nd3 {[%clk 0:03:01.4]} 12... Qb6
{[%clk 0:03:08.5]} 13. Nxc5 {[%clk 0:02:58]} 13... Qxc5 {[%clk 0:03:08.4]} 14.
b3 {[%clk 0:02:59.9]} 14... Bg4 {[%clk 0:03:08.9]} 15. f3 {[%clk 0:02:58.7]}
15... Bf5 {[%clk 0:03:07.1]} 16. Ba3 {[%clk 0:02:58.1]} 16... Nb4 {[%clk
0:02:56.6]} 17. Bxb4 {[%clk 0:02:57.8]} 17... Qxb4 {[%clk 0:02:58.5]} 18. Qxd4
{[%clk 0:02:58.4]} 18... Rfd8 {[%clk 0:02:57.5]} 19. Qe5 {[%clk 0:02:44.2]}
19... Bd3 {[%clk 0:02:53.4]} 20. Rc1 {[%clk 0:02:44]} 20... Re8 {[%clk
0:02:52.6]} 21. Qc3 {[%clk 0:02:36.8]} 21... Qc5+ {[%clk 0:02:48]} 22. Kh1
{[%clk 0:02:37.9]} 22... Rad8 {[%clk 0:02:27.6]} 23. Re1 {[%clk 0:01:51.8]}
23... Qf2 {[%clk 0:02:13.6]} 24. Na3 {[%clk 0:01:39.6]} 24... Be2 {[%clk
0:01:55.1]} 25. Qb2 {[%clk 0:01:15.9]} 25... h5 {[%clk 0:01:42]} 26. Rf1 {[%clk
0:00:20.7]} 26... Qe3 {[%clk 0:01:36.4]} 27. Nc2 {[%clk 0:00:17.4]} 27... Qc5
{[%clk 0:01:23.4]} 28. Rfe1 {[%clk 0:00:12.3]} 28... h4 {[%clk 0:01:23.5]} 29.
Nd4 {[%clk 0:00:12.3]} 29... Qxd4 {[%clk 0:01:02.9]} 30. Qxd4 {[%clk 0:00:09.4]}
30... Rxd4 {[%clk 0:01:03.6]} 31. Kg1 {[%clk 0:00:07.9]} 31... Rd2 {[%clk
0:01:01.5]} 32. a4 {[%clk 0:00:08.2]} 32... Nh5 {[%clk 0:00:58.3]} 33. gxh4
{[%clk 0:00:03.1]} 33... Nf4 {[%clk 0:00:58.4]} 34. Bf1 {[%clk 0:00:04.7]} 34...
Re6 {[%clk 0:00:57.4]} 35. c5 {[%clk 0:00:02.1]} 35... Rg6+ {[%clk 0:00:57.7]}
36. Kf2 {[%clk 0:00:03]} 36... Bxf1+ {[%clk 0:00:57]} 37. Ke3 {[%clk 0:00:04.5]}
37... Rxh2 {[%clk 0:00:50]} 38. Kxf4 {[%clk 0:00:05.2]} 38... Rxh4+ {[%clk
0:00:49.4]} 39. Ke3 {[%clk 0:00:06.5]} 39... Bh3 {[%clk 0:00:48.6]} 40. Red1
{[%clk 0:00:07]} 40... Re6+ {[%clk 0:00:48.3]} 41. Kf2 {[%clk 0:00:08.3]} 41...
Bf5 {[%clk 0:00:47.1]} 42. Rd8+ {[%clk 0:00:08.7]} 42... Kh7 {[%clk 0:00:48.2]}
43. Rad1 {[%clk 0:00:09.1]} 43... Rh2+ {[%clk 0:00:45.8]} 44. Kg3 {[%clk
0:00:10.1]} 44... Rb2 {[%clk 0:00:46.5]} 45. R1d5 {[%clk 0:00:08.5]} 45... Rg6+
{[%clk 0:00:42.6]} 46. Kf4 {[%clk 0:00:08.4]} 46... Be6 {[%clk 0:00:33.7]} 47.
R5d6 {[%clk 0:00:05.4]} 47... Rxb3 {[%clk 0:00:33.5]} 48. Rb8 {[%clk 0:00:06.8]}
48... Rf6+ {[%clk 0:00:33.4]} 49. Ke5 {[%clk 0:00:05.7]} 49... Rf5+ {[%clk
0:00:34.1]} 50. Kd4 {[%clk 0:00:07]} 50... Rb4+ {[%clk 0:00:34]} 51. Kc3 {[%clk
0:00:05]} 51... Rc4+ {[%clk 0:00:35.2]} 52. Kd3 {[%clk 0:00:06.4]} 52... Rxf3+
{[%clk 0:00:35.9]} 53. Ke2 {[%clk 0:00:07.2]} 53... Rh3 {[%clk 0:00:36.7]} 54.
Rxb7 {[%clk 0:00:08.5]} 54... Rxc5 {[%clk 0:00:37.3]} 55. Rxa7 {[%clk
0:00:06.8]} 55... Rc2+ {[%clk 0:00:38.2]} 56. Kd1 {[%clk 0:00:07.3]} 56... Ra2
{[%clk 0:00:38.6]} 57. Kc1 {[%clk 0:00:03.6]} 57... Rh1+ {[%clk 0:00:39.3]} 58.
Rd1 {[%clk 0:00:05.1]} 58... Ra1+ {[%clk 0:00:40.7]} 59. Kb2 {[%clk 0:00:06.7]}
59... Rhxd1 {[%clk 0:00:41.7]} 0-1